Cogmind - Beta 15 @@@ ROGUE MODE // 2025.10.14 @ 13:14:30 Player: Maddymakesgames Result: Destroyed by S-27 Virus with Autogun Performance ------------- Evolutions (3) 1500 Regions Visited (7) 1400 Robots Destroyed (57) 285 Value Destroyed (1652) 1652 Prototype IDs (0) 0 Alien Tech Used (0) 0 Bonus (0) 0 TOTAL SCORE: 4837 Bonus ------- None Cogmind --------- Core Integrity 0/700 Matter 235/300 Energy 100/100 System Corruption 6% Temperature Cool (0) Movement Walking (120) Location -7/Lower Caves Parts ------- > --- POWER (2) -------- (None) > --- PROPULSION (4) --- Carbon-fiber Leg > --- UTILITY (3) ------ (None) > --- WEAPON (4) ------- (None) > --- INVENTORY (5) ---- Improved Ion Engine Improved Ion Engine Drone Bay (2/2) Drone Bay (2/2) Peak State ------------ > --- POWER ------------ Improved Ion Engine Improved Deuterium Engine > --- PROPULSION ------- Wheel Compact Wheel Surge Thruster Surge Thruster > --- UTILITY ---------- Improved Heat Sink Small Storage Unit Salvage Targeting Computer > --- WEAPON ----------- Particle Gun Gatling Laser Flak Gun Assault Cannon > --- INVENTORY -------- Improved Ion Engine Improved Ion Engine Improved Heat Sink Drone Bay Drone Bay [Rating: 34] Favorites ----------- Power Improved Ion Engine Engine Improved Ion Engine Power Core Light Nuclear Core Propulsion Improved Treads Treads Improved Treads Leg Carbon-fiber Leg Wheel Compact Wheel Flight Unit Surge Thruster Utility Small Storage Unit Device Sensor Array Storage Small Storage Unit Processor Salvage Targeting Computer Weapon Medium Laser Energy Gun Medium Laser Ballistic Gun Light Assault Rifle Ballistic Cannon Assault Cannon Launcher Grenade Launcher Build | -11 -10 -9 -9 -8 -8 -7 -7 ------- Run | Yrd Mat Mat Min Mat Sto Fac Low Slots Evolved 6 | . . 2 . 2 . 2 . Power 1 | . . 1 . . . . . Propulsion 2 | . . 1 . . . 1 . Utility 1 | . . . . 1 . . . Weapon 2 | . . . . 1 . 1 . Parts Attached 55 | 6 2 8 3 5 12 15 4 Power 11 | 1 1 2 1 . 3 2 1 Engine 8 | 1 1 2 1 . . 2 1 Core 3 | . . . . . 3 . . Reactor . | . . . . . . . . Propulsion 18 | 2 . 5 . . 3 7 1 Treads 10 | 2 . 5 . . 3 . . Leg 1 | . . . . . . . 1 Wheel 4 | . . . . . . 4 . Hover . | . . . . . . . . Flight 3 | . . . . . . 3 . Utility 8 | 1 1 . 1 1 3 1 . Device 6 | . 1 . . 1 3 1 . Storage 1 | 1 . . . . . . . Processor 1 | . . . 1 . . . . Hackware . | . . . . . . . . Protection . | . . . . . . . . Artifact . | . . . . . . . . Weapon 18 | 2 . 1 1 4 3 5 2 Energy Gun 8 | 2 . . . 1 1 3 1 Energy Cannon . | . . . . . . . . Ballistic Gun 7 | . . 1 1 1 2 1 1 Ballistic Cannon 1 | . . . . . . 1 . Launcher 2 | . . . . 2 . . . Special Weapon . | . . . . . . . . Impact Weapon . | . . . . . . . . Slashing Weapon . | . . . . . . . . Piercing Weapon . | . . . . . . . . Special Melee Weapon . | . . . . . . . . Unidentified Prototypes . | . . . . . . . . Parts Lost 39 | . . 1 1 4 8 13 12 Power 8 | . . 1 . . 3 2 2 Propulsion 12 | . . . . 1 3 4 4 Utility 4 | . . . 1 . . 1 2 Weapon 15 | . . . . 3 2 6 4 Highest Loss Streak 9 | . . 1 1 2 5 5 9 To Critical Strikes . | . . . . . . . . Average Backups 5 | 1 3 6 7 5 7 6 4 Power 1 | . 1 . 1 1 2 2 1 Propulsion . | . . . 1 1 . . . Utility 1 | . . 1 1 . 3 3 2 Weapon 1 | . 1 3 3 2 . . . Tool/Special . | . . . . . . . . Unused Backups 5 | . . . 2 . . . 3 Power 2 | . . . 1 . . . 1 Propulsion . | . . . . . . . . Utility 2 | . . . . . . . 2 Weapon 1 | . . . 1 . . . . Tool/Special . | . . . . . . . . Average Slot Usage (%) 86 | . 97 97 99 93 92 78 14 Engine 12 | . 14 21 21 18 1 6 1 Core 3 | . . . . . 14 6 . Treads 22 | . 28 31 33 22 22 7 . Flight 1 | . . . . . . 6 1 Device 8 | . 11 11 5 8 9 6 . Storage 9 | . 14 11 11 9 9 7 . Processor 4 | . . . 4 9 9 7 1 Energy Gun 13 | . 28 20 6 2 17 11 1 Ballistic Gun 7 | . . 1 15 17 9 5 . Peak Build Rating 34 | 6 7 15 17 18 25 34 26 Average Rating 15 | 4 6 11 16 17 21 24 5 On Entrance 13 | . 6 7 15 17 18 21 26 Naked Turns 4 | . . . . . . . 4 Heaviest Build 39 | 11 12 21 25 28 27 39 30 Greatest Support 69 | 40 40 69 69 69 66 43 26 Greatest Overweight (x) 6 | . . . . . . 6 3 Average Overweight (x) . | . . . . . . . . Largest Inventory Capacity 8 | 8 8 8 8 8 8 8 8 Average Capacity 7 | 6 8 8 8 8 8 8 5 Most Carried 8 | 2 4 8 8 7 8 7 6 Average Carried 5 | 1 3 6 7 5 7 6 4 Final Capacity 8 | 8 8 8 8 8 8 8 5 Final Carried 8 | 2 3 8 7 7 7 6 4 Class Distribution -------------------- 59% | Mutant 28% | Scavenger-Gunner 11% | Gunner Dominant Class ---------------- Mutant | -10/Materials Mutant | -9/Materials Mutant | -9/Mines Gunner | -8/Materials Scavenger-Gunner | -8/Storage Scavenger-Gunner | -7/Factory Mutant | -7/Lower Caves Resources | -11 -10 -9 -9 -8 -8 -7 -7 ----------- Run | Yrd Mat Mat Min Mat Sto Fac Low Matter Collected 1105 | 194 50 117 50 128 198 321 47 Remotely . | . . . . . . . . Salvage Created 1917 | . 34 310 54 283 611 539 86 Parts 116 | . 3 18 4 25 31 30 5 Haulers Intercepted . | . . . . . . . . Recyclers Shooed . | . . . . . . . . Parts Field Recycled . | . . . . . . . . Retrieved Matter . | . . . . . . . . Parts Self-Destructed 9 | . . . . . . . 9 Prevented . | . . . . . . . . Kills | -11 -10 -9 -9 -8 -8 -7 -7 ------- Run | Yrd Mat Mat Min Mat Sto Fac Low Combat Hostiles Destroyed 43 | . 2 5 4 7 12 11 2 Guns 31 | . 2 5 4 4 12 2 2 Cannons 8 | . . . . . . 8 . AOE 3 | . . . . 3 . . . Classes Destroyed 9 | . 1 3 . 3 . 1 1 Worker 5 | . . . . 1 2 2 . Builder 4 | . . . . 3 . 1 . Recycler 3 | . . . . 1 . 2 . Watcher 2 | . . 2 . . . . . Swarmer 16 | . 2 . 4 3 3 3 1 Grunt 11 | . . 1 . 2 6 2 . Sentry 12 | . . 4 . 2 3 3 . Hunter 1 | . . . . . . . 1 Programmer 3 | . . . . . . 3 . Best Kill Streak 5 | . 2 2 4 5 5 3 1 Combat Bots Only 5 | . 2 1 4 4 5 2 1 Max Kills in Single Turn 3 | . 1 1 1 3 2 2 1 Gunslinging 1 | . . . . 1 1 . . Exploded 3 | . . . . 3 . . . Melee . | . . . . . . . . Uniques/NPCs Destroyed . | . . . . . . . . Combat | -11 -10 -9 -9 -8 -8 -7 -7 -------- Run | Yrd Mat Mat Min Mat Sto Fac Low Hostile Shots Fired 548 | . 38 38 34 53 67 209 109 Missed 185 | . 12 12 3 14 14 86 44 Hits 363 | . 26 26 31 39 53 123 65 Projectile 363 | . 26 26 31 39 53 123 65 AOE 1 | . . . . . . 1 . Critical Strikes 9 | . 1 1 . 2 3 1 1 Damage Taken 4581 | . 205 372 254 563 725 1228 1234 Core 991 | . 23 113 10 35 98 139 573 Absorbed by Shields . | . . . . . . . . Core Remaining (%) 83 | 100 90 . 69 . 75 . . Volleys Fired 164 | . 12 32 10 16 41 39 14 Largest 4 | . 2 2 2 3 3 4 2 Hottest 210 | . 90 90 73 108 135 210 130 Shots Fired 351 | . 20 39 20 39 112 103 18 Gun 313 | . 20 39 20 32 112 72 18 Cannon 31 | . . . . . . 31 . Launcher 7 | . . . . 7 . . . Special . | . . . . . . . . Kinetic 150 | . . 1 10 30 41 57 11 Thermal 190 | . 20 38 10 2 71 46 3 Explosive 7 | . . . . 7 . . . Electromagnetic 4 | . . . . . . . 4 Robot Hit Streak 10 | . 2 9 3 4 10 8 6 Robot Miss Streak 7 | . 3 4 2 2 6 7 3 Penetration Max . | . . . . . . . . Secondary Targets 8 | . 1 . . 1 5 . 1 Max Gunslinging Chain 1 | . 1 . . 1 1 . 1 Shots Hit Robots 209 | . 9 26 9 18 68 67 12 Core Hits 124 | . 2 12 4 21 30 45 10 Critical Kills . | . . . . . . . . Critical Parts Destroyed . | . . . . . . . . Critical Strikes 7 | . 2 1 1 1 1 1 . Burn 7 | . 2 1 1 1 1 1 . Melee Attacks . | . . . . . . . . Impact . | . . . . . . . . Slashing . | . . . . . . . . Piercing . | . . . . . . . . Sneak Attacks . | . . . . . . . . Combat Hostiles . | . . . . . . . . Follow-up Attacks . | . . . . . . . . Damage Inflicted 3957 | . 107 294 185 857 870 1357 287 Guns 2909 | . 107 294 185 245 870 967 241 Cannons 382 | . . . . . . 382 . Explosions 648 | . . . . 612 . . 36 Melee . | . . . . . . . . Ramming 18 | . . . . . . 8 10 Kinetic 1380 | . . 13 96 215 214 753 89 Thermal 1845 | . 107 281 89 30 656 596 86 Explosive 612 | . . . . 612 . . . Electromagnetic 102 | . . . . . . . 102 Impact . | . . . . . . . . Slashing . | . . . . . . . . Piercing . | . . . . . . . . Highest Corruption 6 | . . . . . 2 5 6 Average Corruption 3 | . . . . . 1 3 5 Corruption Purged . | . . . . . . . . Corruption Blocked . | . . . . . . . . Effects 33 | . . . . . 15 7 11 Message Errors 9 | . . . . . 5 2 2 Matter Fused 5 | . . . . . 3 1 1 Heat Flow Errors 4 | . . . . . 1 . 3 Energy Discharges 4 | . . . . . 1 2 1 Parts Rejected 2 | . . . . . 1 1 . Data Loss (minor) 6 | . . . . . 2 . 4 Data Loss (major) 1 | . . . . . 1 . . Misfires 1 | . . . . . . 1 . Weapon Failures 1 | . . . . . 1 . . Overload Shots . | . . . . . . . . Overflow Damage 25 | . . . . 24 . 1 . Projectiles 1 | . . . . . . 1 . Explosions 24 | . . . . 24 . . . Melee . | . . . . . . . . Knockbacks 1 | . . . . . . 1 . Impact . | . . . . . . . . Kinetic 1 | . . . . . . 1 . Secondary . | . . . . . . . . Self-Inflicted Damage 46 | . . . . 39 . 2 5 Shots 1 | . . . . 1 . . . Rammed 5 | . . . . . . 3 2 Targets Rammed 5 | . . . . . . 3 2 Kicked . | . . . . . . . . Crushed . | . . . . . . . . Highest Temperature 476 | . 240 261 240 51 476 175 121 Average Temperature 112 | . 142 59 122 14 195 59 42 Received Heat Transfer 1005 | . . 141 . 180 387 171 126 Effects 10 | . 1 . 2 . 7 . . Shutdowns 3 | . . . . . 3 . . Energy Bleed 1 | . . . . . 1 . . Interference 3 | . 1 . 2 . . . . Damage (minor) 1 | . . . . . 1 . . Damage (major) 2 | . . . . . 2 . . Siege Activations . | . . . . . . . . Martial Activations . | . . . . . . . . Shielding Activations . | . . . . . . . . Robots Disrupted . | . . . . . . . . Combat Hostiles . | . . . . . . . . Robots Corrupted . | . . . . . . . . Combat Hostiles . | . . . . . . . . Parts Fried . | . . . . . . . . Impact Corruptions . | . . . . . . . . Robots Melted 1 | . . . . . . 1 . Combat Hostiles 1 | . . . . . . 1 . Parts Melted 14 | . 1 2 1 . 7 3 . Heat Transferred 5068 | . 433 747 333 148 1813 1419 175 Parts Sabotaged . | . . . . . . . . Parts Stolen . | . . . . . . . . Parts Stripped . | . . . . . . . . Power Chain Reactions 1 | . . . . . . . 1 Alert | -11 -10 -9 -9 -8 -8 -7 -7 ------- Run | Yrd Mat Mat Min Mat Sto Fac Low Maximum Alert Level 1 | . . . . 1 . . . Low Security (%) 97 | 100 100 100 100 77 100 100 . Level 1 2 | . . . . 22 . . . Level 2 . | . . . . . . . . Level 3 . | . . . . . . . . Level 4 . | . . . . . . . . Level 5 . | . . . . . . . . High Security . | . . . . . . . . Max Security . | . . . . . . . . Peak Influence 223 | . 40 42 72 223 135 116 . Initial 85 | . . . . . 85 11 . Average 27 | . 4 9 8 85 47 34 . Influence Increases 1460 | . 50 169 90 363 332 391 65 Destroy 0b10 Robot/C 860 | . 40 100 80 140 240 220 40 Destroy 0b10 Robot/NC 70 | . . 10 . 25 10 25 . Destroy Leader 254 | . 10 54 10 40 60 70 10 Successful Hack 12 | . . 5 . . 7 . . Disable Machine 60 | . . . . . 15 45 . Destroy Structure 54 | . . . . 53 . 1 . Lose Combat Pursuer 150 | . . . . 105 . 30 15 Influence Decreases 1460 | . 50 169 90 161 509 325 156 Entered New Map 166 | . . . . . 117 14 35 Time Decay 948 | . 50 159 80 121 292 201 45 Lost Part 326 | . . 10 10 40 80 110 76 Lost Ally 20 | . . . . . 20 . . Squads Dispatched 7 | . . 1 . 1 1 4 . Investigation . | . . . . . . . . Extermination 1 | . . . . . . 1 . Reinforcement 3 | . . 1 . 1 1 . . Assault . | . . . . . . . . Garrison 3 | . . . . . . 3 . Intercept . | . . . . . . . . Searches Triggered . | . . . . . . . . Construction Impeded 1 | . . . . 1 . . . Haulers Reinforced . | . . . . . . . . Active Scanning Responses . | . . . . . . . . Cargo Convoy Interrupts . | . . . . . . . . Stealth | -11 -10 -9 -9 -8 -8 -7 -7 --------- Run | Yrd Mat Mat Min Mat Sto Fac Low Distress Signals 6 | . . 3 . 1 2 . . Communications Jammed . | . . . . . . . . Distress Signals . | . . . . . . . . Times Spotted 83 | . 7 15 4 15 16 17 9 Peak Tracking Total 6 | . 4 3 4 6 5 3 5 Tactical Retreats 10 | . . . . 7 . 2 1 Traps | -11 -10 -9 -9 -8 -8 -7 -7 ------- Run | Yrd Mat Mat Min Mat Sto Fac Low Traps Triggered 2 | . . . . . 2 . . Indirectly . | . . . . . . . . Trap Hack Attempts . | . . . . . . . . Triggered . | . . . . . . . . Disarmed . | . . . . . . . . Reprogrammed . | . . . . . . . . Reused . | . . . . . . . . Traps Extracted . | . . . . . . . . Installed . | . . . . . . . . Triggered . | . . . . . . . . Machines | -11 -10 -9 -9 -8 -8 -7 -7 ---------- Run | Yrd Mat Mat Min Mat Sto Fac Low Machines Disabled 4 | . . . . . 1 3 . Max in Single Turn 1 | . . . . . 1 1 . Machines Repaired . | . . . . . . . . Machines Dismantled . | . . . . . . . . Machines Sabotaged . | . . . . . . . . Overloaded Fab Kills . | . . . . . . . . Hacking | -11 -10 -9 -9 -8 -8 -7 -7 --------- Run | Yrd Mat Mat Min Mat Sto Fac Low Machines Accessed 10 | . 3 2 . . 3 1 1 Terminals 6 | . 2 2 . . 2 . . Fabricators . | . . . . . . . . Repair Stations . | . . . . . . . . Recycling Units 2 | . 1 . . . 1 . . Scanalyzers . | . . . . . . . . Garrison Access 1 | . . . . . . 1 . Total Hacks 21 | . 10 3 . . 6 1 1 Successful 11 | . 5 2 . . 3 . 1 Failed 10 | . 5 1 . . 3 1 . Catastrophic . | . . . . . . . . Database Lockouts . | . . . . . . . . Manual . | . . . . . . . . Terminals 11 | . 4 3 . . 4 . . Fabricators . | . . . . . . . . Repair Stations . | . . . . . . . . Recycling Units 8 | . 6 . . . 2 . . Scanalyzers . | . . . . . . . . Garrison Access 1 | . . . . . . 1 . Terminal Hacks 5 | . . 2 . . 2 . 1 Record 1 | . . 1 . . . . . Open Door 3 | . . . . . 2 . 1 Zone Layout 1 | . . 1 . . . . . Fabricator Hacks . | . . . . . . . . Repair Station Hacks . | . . . . . . . . Recycling Unit Hacks 6 | . 5 . . . 1 . . Recycle Component 1 | . 1 . . . . . . Process 1 | . 1 . . . . . . Report Inventory 2 | . 1 . . . 1 . . Retrieve Matter 2 | . 2 . . . . . . Scanalyzer . | . . . . . . . . Garrison Access Hacks . | . . . . . . . . Unauthorized Hacks . | . . . . . . . . Terminals . | . . . . . . . . Fabricators . | . . . . . . . . Repair Stations . | . . . . . . . . Recycling Units . | . . . . . . . . Scanalyzers . | . . . . . . . . Garrison Access . | . . . . . . . . Data Cores Recovered . | . . . . . . . . Used . | . . . . . . . . Hacking Detections 5 | . 2 . . . 2 1 . Full Trace Events . | . . . . . . . . Feedback Events . | . . . . . . . . Feedback Blocked . | . . . . . . . . Robot Schematics Acquired . | . . . . . . . . Robots Built . | . . . . . . . . Authchips . | . . . . . . . . Time . | . . . . . . . . Total Robot Build Rating . | . . . . . . . . Part Schematics Acquired . | . . . . . . . . Parts Built . | . . . . . . . . Authchips . | . . . . . . . . Time . | . . . . . . . . Total Part Build Rating . | . . . . . . . . Parts Repaired . | . . . . . . . . Time . | . . . . . . . . Parts Recycled 1 | . 1 . . . . . . Recycled Matter 27 | . 27 . . . . . . Retrieved Matter 27 | . 27 . . . . . . Retrieved Components . | . . . . . . . . Parts Scanalyzed . | . . . . . . . . Part Schematics Acquired . | . . . . . . . . Parts Damaged . | . . . . . . . . Bothacking | -11 -10 -9 -9 -8 -8 -7 -7 ------------ Run | Yrd Mat Mat Min Mat Sto Fac Low Used RIF Installer . | . . . . . . . . Robots Hacked . | . . . . . . . . Non-combat . | . . . . . . . . Combat . | . . . . . . . . Robot Hacks Applied . | . . . . . . . . Relay Couplers Released . | . . . . . . . . Fabnet Peak Effective % . | . . . . . . . . Robots Rewired . | . . . . . . . . Allies Hacked . | . . . . . . . . Hacks Repelled . | . . . . . . . . Allies | -11 -10 -9 -9 -8 -8 -7 -7 -------- Run | Yrd Mat Mat Min Mat Sto Fac Low Total Allies . | . . . . . . . . Largest Group . | . . . . . . . . Highest-Rated Group . | . . . . . . . . Highest-Rated Ally . | . . . . . . . . Total Orders . | . . . . . . . . Ally Attacks . | . . . . . . . . Total Damage . | . . . . . . . . Kills . | . . . . . . . . Allies Corrupted . | . . . . . . . . Allies Melted . | . . . . . . . . Intel | -11 -10 -9 -9 -8 -8 -7 -7 ------- Run | Yrd Mat Mat Min Mat Sto Fac Low Active Infowar (turns) 1777 | . 465 893 419 . . . . Sensors 1777 | . 465 893 419 . . . . Robot Analysis Total . | . . . . . . . . Derelict Logs Recovered 2 | . . . 1 . . . 1 Drone Launches 2 | . . . . . 2 . . Drone Recoveries . | . . . . . . . . Exploration | -11 -10 -9 -9 -8 -8 -7 -7 ------------- Run | Yrd Mat Mat Min Mat Sto Fac Low Turns Passed 4817 | 124 540 893 809 436 860 791 364 Spaces Moved 2812 | 75 316 498 482 238 440 447 316 Core 51 | 5 . . . . . 7 39 Treads 2262 | 70 316 498 482 238 440 218 . Legs 220 | . . . . . . . 220 Wheels 147 | . . . . . . 127 20 Hover . | . . . . . . . . Flight 132 | . . . . . . 95 37 Fastest Speed 35 | 50 160 160 160 160 160 69 35 Average Speed 150 | 152 160 160 160 160 160 143 102 Slowest Speed 350 | 160 160 160 160 160 160 350 200 Overloaded Moves . | . . . . . . . . Propulsion Burnouts . | . . . . . . . . Robots Hopped . | . . . . . . . . Potential Cave-ins . | . . . . . . . . Cave-ins Triggered . | . . . . . . . . Exploration Rate (%) 29 | 4 38 26 79 11 38 11 32 Regions Visited 7 Branch Regions 3 Pre-discovered Areas . | . . . . . . . . Known Exits Taken 1 | . . . . . 1 . . Unknown Exits Taken 6 | 1 1 1 1 1 . 1 . Scrap Searched 3 | . . . 2 . . . 1 Spaces Dug . | . . . . . . . . Terrain Destroyed 66 | . . . . 66 . . . Melee . | . . . . . . . . Projectile . | . . . . . . . . AOE 66 | . . . . 66 . . . Terrain Rammed . | . . . . . . . . Walls Destroyed . | . . . . . . . . Machines Disabled . | . . . . . . . . Actions | -11 -10 -9 -9 -8 -8 -7 -7 --------- Run | Yrd Mat Mat Min Mat Sto Fac Low Total 3093 | 82 330 557 501 263 515 506 339 Wait 13 | . . . . . 13 . . Move 2805 | 74 315 497 481 237 439 446 316 Hop . | . . . . . . . . Pick Up 28 | 2 1 8 3 5 8 1 . Fast Attach 32 | 6 1 7 1 . 1 13 3 Attach 24 | . . 3 2 5 10 2 2 Detach 5 | . . 1 . . 1 1 2 Swap 3 | . 1 1 . . 1 . . Drop 14 | . . 8 4 . 1 1 . Fire 164 | . 12 32 10 16 41 39 14 Melee . | . . . . . . . . Ram 4 | . . . . . . 2 2 Kick . | . . . . . . . . Crush 1 | . . . . . . 1 . Escape Stasis . | . . . . . . . . Rewire . | . . . . . . . . Trap . | . . . . . . . . Miscellaneous . | . . . . . . . . Route ------- -11/Scrapyard -10/Materials -9/Materials -9/Mines -8/Materials (discovered 2 exits: Fac / *Sto) -8/Storage -7/Factory -7/Lower Caves (discovered 1 exit: Low) History --------- Turn | Location | Event 5 | -11/Scrapyard | Discovered new exit (range 16) 125 | -11/Scrapyard | Entered Materials 316 | -10/Materials | Build established: Mutant 587 | -10/Materials | Discovered new exit (range 8) 665 | -10/Materials | Entered another Materials area 665 | -9/Materials | Evolved 2 slots: Power x1, Propulsion x1 674 | -9/Materials | Discovered new exit (range 13) 1558 | -9/Materials | Entered Mines 1687 | -9/Mines | Received a Rocket Launcher from a helpful Derelict 1726 | -9/Mines | Found DCF Scrap (11 items) 2351 | -9/Mines | Discovered new exit (range 8) 2367 | -9/Mines | Entered Materials 2367 | -8/Materials | Evolved 2 slots: Utility x1, Weapon x1 2368 | -8/Materials | Identified exit to Factory 2370 | -8/Materials | Discovered new exit (range 7) 2803 | -8/Materials | Entered Storage 2896 | -8/Storage | Lost 5 parts (2p1n2w) 3177 | -8/Storage | Build established: Scavenger-Gunner 3639 | -8/Storage | Discovered exit to Factory (range 15) 3663 | -8/Storage | Entered Factory 3663 | -7/Factory | Evolved 2 slots: Propulsion x1, Weapon x1 4007 | -7/Factory | Garrison activated, responded to threat 4082 | -7/Factory | Lost 4 parts (1p2n1w) 4397 | -7/Factory | Discovered new exit (range 13) 4454 | -7/Factory | Entered Lower Caves 4468 | -7/Lower Caves | Lost 5 parts (2n3w) 4492 | -7/Lower Caves | Core integrity fell below 50% 4519 | -7/Lower Caves | Lost 9 parts (2p3n2u2w) 4529 | -7/Lower Caves | Core integrity fell below 20% 4580 | -7/Lower Caves | Lost 3 parts (1n2w) 4674 | -7/Lower Caves | Identified exit to Lower Caves 4783 | -7/Lower Caves | Build established: Mutant 4818 | -7/Lower Caves | Destroyed by S-27 Virus with Autogun Last Messages --------------- H-55 Commando destroyed. Penetrated by Slug. Autogun destroyed. Gauss Rifle fries itself beyond repair. Targeting Computer fries itself beyond repair. Slug penetrates Wall. Acquired Carbon-fiber Leg. Penetrated by Slug. Slug penetrates Wall. Penetrated by Slug. Slug penetrates Wall. System corrupted: Component data lost. System corrupted: Heat flow error (+141). KM#< 28UV 7 Acquired derelict log, extracted data. Loading 1 Lower Caves exit... T%UZ4